Workbook

Sheet CIELE
B1: =TODAY() -> 2022-12-14 | C1: CIELE | J1: Cvičenie | K1: Stravovanie
B2: DÁTUM ZAČATIA | C2: DENNÍK STRAVOVANIA A CVIČENIA
B3: =DátumZačatia+121 -> 2023-04-14 | C3: ANALÝZA STRAVOVANIA
B4: DÁTUM UKONČENIA
B5: 220.00
B6: HMOTNOSŤ NA ZAČIATKU
B7: 180.00 | C7: ANALÝZA CVIČENIA
B8: HMOTNOSŤ NA KONCI
B9: =HmotnosťNaZačiatku-HmotnosťNaKonci -> 40
B10: PLÁNOVANÝ ÚBYTOK HMOTNOSTI
B11: =DátumUkončenia-DátumZačatia -> 121
B12: DNI NA CHUDNUTIE
B13: =HmotnostnýCieľ/B11 -> 0.33
B14: ÚBYTOK HMOTNOSTI ZA DEŇ

Sheet STRAVOVANIE
B1: STRAVOVANIE | G1: Ciele | H1: Cvičenie
B2: =Podnadpis -> DENNÍK STRAVOVANIA A CVIČENIA
B3: DÁTUM | C3: ČAS | D3: POPIS | E3: KALÓRIE | F3: SACHARIDY | G3: BIELKOVINY | H3: TUKY | I3: POZNÁMKY
B4: =DátumZačatia -> 2022-12-14 | C4: 07:00:00 | D4: Káva | E4: 1 | F4: 0 | G4: 0 | H4: 0 | I4: Ranná káva
B5: =DátumZačatia -> 2022-12-14 | C5: 08:00:00 | D5: Žemľa | E5: 10 | F5: 10 | G5: 2 | H5: 10 | I5: Ľahké raňajky
B6: =DátumZačatia -> 2022-12-14 | C6: 12:00:00 | D6: Obed | E6: 283 | F6: 46 | G6: 18 | H6: 4 | I6: Morčací sendvič
B7: =DátumZačatia -> 2022-12-14 | C7: 19:00:00 | D7: Večera | E7: 500 | F7: 42 | G7: 35 | H7: 25 | I7: Zemiakové casserole
B8: =DátumZačatia+1 -> 2022-12-15 | C8: 07:00:00 | D8: Káva | E8: 1 | F8: 0 | G8: 0 | H8: 0 | I8: Ranná káva
B9: =DátumZačatia+1 -> 2022-12-15 | C9: 08:00:00 | D9: Hrianka | E9: 10 | F9: 10 | G9: 2 | H9: 10 | I9: Ľahké raňajky
B10: =DátumZačatia+1 -> 2022-12-15 | C10: 12:00:00 | D10: Obed | E10: 189 | F10: 26 | G10: 3 | H10: 8 | I10: Sendvič
B11: =DátumZačatia+1 -> 2022-12-15 | C11: 19:00:00 | D11: Večera | E11: 477 | F11: 62 | G11: 14 | H11: 21 | I11: Večera
B12: =DátumZačatia+2 -> 2022-12-16 | C12: 07:00:00 | D12: Káva | E12: 1 | F12: 0 | G12: 0 | H12: 0 | I12: Ranná káva
B13: =DátumZačatia+2 -> 2022-12-16 | C13: 08:00:00 | D13: Žemľa | E13: 245 | F13: 48 | G13: 10 | H13: 2 | I13: Ľahké raňajky
B14: =DátumZačatia+2 -> 2022-12-16 | C14: 12:00:00 | D14: Obed | E14: 247 | F14: 11 | G14: 43 | H14: 5 | I14: Šalát
B15: =DátumZačatia+2 -> 2022-12-16 | C15: 19:00:00 | D15: Večera | E15: 456 | F15: 64 | G15: 32 | H15: 22 | I15: Večera
B16: =DátumZačatia+3 -> 2022-12-17 | C16: 07:00:00 | D16: Hrianka | E16: 10 | F16: 10 | G16: 2 | H16: 10 | I16: Ľahké raňajky
B17: =DátumZačatia+3 -> 2022-12-17 | C17: 10:00:00 | D17: Káva | E17: 135 | F17: 12 | G17: 9 | H17: 6 | I17: Latte
B18: =DátumZačatia+3 -> 2022-12-17 | C18: 12:15:00 | D18: Obed | E18: 184 | F18: 7 | G18: 5 | H18: 15 | I18: Šalát
B19: =DátumZačatia+5 -> 2022-12-19 | C19: 19:00:00 | D19: Večera | E19: 477 | F19: 62 | G19: 14 | H19: 21 | I19: Večera

Sheet CVIČENIE
B1: CVIČENIE | F1: Stravovanie | G1: Ciele
B2: =Podnadpis -> DENNÍK STRAVOVANIA A CVIČENIA
B3: DÁTUM | C3: DĹŽKA TRVANIA (MINÚTY) | D3: SPÁLENÉ KALÓRIE | E3: POZNÁMKY
B4: =DátumZačatia+4 -> 2022-12-18 | C4: 30 | D4: 120 | E4: Cvičenie na bežeckom páse
B5: =B4+1 -> 2022-12-19 | C5: 60 | D5: 180 | E5: Nízkozáťažové aeróbne cvičenie
B6: =B5+1 -> 2022-12-20 | C6: 60 | D6: 350 | E6: Extrémne cvičenie
B7: 2022-12-21 | C7: 30 | D7: 150 | E7: Cvičenie na bežeckom páse
B8: 2022-12-22 | C8: 25 | D8: 125 | E8: Beh
B9: 2022-12-23 | C9: 20 | D9: 285 | E9: Cvičenie na bežeckom páse
B10: 2022-12-24 | C10: 40 | D10: 205 | E10: Beh
B11: 2022-12-25 | C11: 30 | D11: 335 | E11: Beh
B12: 2022-12-26 | C12: 40 | D12: 175 | E12: Beh
B13: 2022-12-27 | C13: 45 | D13: 325 | E13: Cvičenie na bežeckom páse
B14: 2022-12-28 | C14: 40 | D14: 270 | E14: Beh
B15: 2022-12-29 | C15: 20 | D15: 295 | E15: Cvičenie na bežeckom páse
B16: 2022-12-30 | C16: 45 | D16: 350 | E16: Beh
B17: 2022-12-31 | C17: 35 | D17: 320 | E17: Beh
B18: 2023-01-01 | C18: 40 | D18: 290 | E18: Beh
B19: =B18+1 -> 2023-01-02 | C19: 25 | D19: 265 | E19: Cvičenie na bežeckom páse
B20: 2023-01-03 | C20: 20 | D20: 195 | E20: Beh

Sheet Výpočty grafov (hidden)
B2: ÚDAJE GRAFU ANALÝZY STRAVOVANIA
B4: Začiatočný riadok | C4: =ROW(Stravovanie[[#Headers],[DÁTUM]])+1 -> 4 | D4: DÁTUM | E4: DEŇ | F4: TUKY | G4: BIELKOVINY | H4: SACHARIDY | I4: KALÓRIE | J4: Počet
B5: Posledný záznam o stravovaní | C5: =MATCH(9.99E+307,Stravovanie[DÁTUM])+ZačiatokRiadkaStravovania-1 -> 19 | D5: =IFERROR(IF(INDEX(Stravovanie[],KoniecPoslednéhoStravovania-ZačiatokRiadkaStravovania-J5,1)<>"",INDEX(Stravovanie[],KoniecPoslednéhoStravovania-ZačiatokRiadkaStravovania-J5,1),""),"") -> 2022-12-14 | E5: =UPPER(TEXT(D5,"DDD")) -> ST | F5: =IFERROR((IF(INDEX(Stravovanie[],KoniecPoslednéhoStravovania-ZačiatokRiadkaStravovania-J5,1)<>"",INDEX(Stravovanie[],KoniecPoslednéhoStravovania-ZačiatokRiadkaStravovania-J5,7),NA())),NA()) -> 3.5 | G5: =IFERROR((IF(INDEX(Stravovanie[],KoniecPoslednéhoStravovania-ZačiatokRiadkaStravovania-J5,1)<>"",INDEX(Stravovanie[],KoniecPoslednéhoStravovania-ZačiatokRiadkaStravovania-J5,6),NA())),NA()) -> 18 | H5: =IFERROR((IF(INDEX(Stravovanie[],KoniecPoslednéhoStravovania-ZačiatokRiadkaStravovania-J5,1)<>"",INDEX(Stravovanie[],KoniecPoslednéhoStravovania-ZačiatokRiadkaStravovania-J5,5),NA())),NA()) -> 46 | I5: =IFERROR((IF(INDEX(Stravovanie[],KoniecPoslednéhoStravovania-ZačiatokRiadkaStravovania-J5,1)<>"",INDEX(Stravovanie[],KoniecPoslednéhoStravovania-ZačiatokRiadkaStravovania-J5,4),NA())),NA()) -> 283 | J5: 12
D6: =IFERROR(IF(INDEX(Stravovanie[],KoniecPoslednéhoStravovania-ZačiatokRiadkaStravovania-J6,1)<>"",INDEX(Stravovanie[],KoniecPoslednéhoStravovania-ZačiatokRiadkaStravovania-J6,1),""),"") -> 2022-12-14 | E6: ST | F6: =IFERROR((IF(INDEX(Stravovanie[],KoniecPoslednéhoStravovania-ZačiatokRiadkaStravovania-J6,1)<>"",INDEX(Stravovanie[],KoniecPoslednéhoStravovania-ZačiatokRiadkaStravovania-J6,7),NA())),NA()) -> 25 | G6: =IFERROR((IF(INDEX(Stravovanie[],KoniecPoslednéhoStravovania-ZačiatokRiadkaStravovania-J6,1)<>"",INDEX(Stravovanie[],KoniecPoslednéhoStravovania-ZačiatokRiadkaStravovania-J6,6),NA())),NA()) -> 35 | H6: =IFERROR((IF(INDEX(Stravovanie[],KoniecPoslednéhoStravovania-ZačiatokRiadkaStravovania-J6,1)<>"",INDEX(Stravovanie[],KoniecPoslednéhoStravovania-ZačiatokRiadkaStravovania-J6,5),NA())),NA()) -> 42 | I6: =IFERROR((IF(INDEX(Stravovanie[],KoniecPoslednéhoStravovania-ZačiatokRiadkaStravovania-J6,1)<>"",INDEX(Stravovanie[],KoniecPoslednéhoStravovania-ZačiatokRiadkaStravovania-J6,4),NA())),NA()) -> 500 | J6: 11
D7: =IFERROR(IF(INDEX(Stravovanie[],KoniecPoslednéhoStravovania-ZačiatokRiadkaStravovania-J7,1)<>"",INDEX(Stravovanie[],KoniecPoslednéhoStravovania-ZačiatokRiadkaStravovania-J7,1),""),"") -> 2022-12-15 | E7: ŠT | F7: =IFERROR((IF(INDEX(Stravovanie[],KoniecPoslednéhoStravovania-ZačiatokRiadkaStravovania-J7,1)<>"",INDEX(Stravovanie[],KoniecPoslednéhoStravovania-ZačiatokRiadkaStravovania-J7,7),NA())),NA()) -> 0 | G7: =IFERROR((IF(INDEX(Stravovanie[],KoniecPoslednéhoStravovania-ZačiatokRiadkaStravovania-J7,1)<>"",INDEX(Stravovanie[],KoniecPoslednéhoStravovania-ZačiatokRiadkaStravovania-J7,6),NA())),NA()) -> 0 | H7: =IFERROR((IF(INDEX(Stravovanie[],KoniecPoslednéhoStravovania-ZačiatokRiadkaStravovania-J7,1)<>"",INDEX(Stravovanie[],KoniecPoslednéhoStravovania-ZačiatokRiadkaStravovania-J7,5),NA())),NA()) -> 0 | I7: =IFERROR((IF(INDEX(Stravovanie[],KoniecPoslednéhoStravovania-ZačiatokRiadkaStravovania-J7,1)<>"",INDEX(Stravovanie[],KoniecPoslednéhoStravovania-ZačiatokRiadkaStravovania-J7,4),NA())),NA()) -> 1 | J7: 10
D8: =IFERROR(IF(INDEX(Stravovanie[],KoniecPoslednéhoStravovania-ZačiatokRiadkaStravovania-J8,1)<>"",INDEX(Stravovanie[],KoniecPoslednéhoStravovania-ZačiatokRiadkaStravovania-J8,1),""),"") -> 2022-12-15 | E8: ŠT | F8: =IFERROR((IF(INDEX(Stravovanie[],KoniecPoslednéhoStravovania-ZačiatokRiadkaStravovania-J8,1)<>"",INDEX(Stravovanie[],KoniecPoslednéhoStravovania-ZačiatokRiadkaStravovania-J8,7),NA())),NA()) -> 10 | G8: =IFERROR((IF(INDEX(Stravovanie[],KoniecPoslednéhoStravovania-ZačiatokRiadkaStravovania-J8,1)<>"",INDEX(Stravovanie[],KoniecPoslednéhoStravovania-ZačiatokRiadkaStravovania-J8,6),NA())),NA()) -> 2 | H8: =IFERROR((IF(INDEX(Stravovanie[],KoniecPoslednéhoStravovania-ZačiatokRiadkaStravovania-J8,1)<>"",INDEX(Stravovanie[],KoniecPoslednéhoStravovania-ZačiatokRiadkaStravovania-J8,5),NA())),NA()) -> 10 | I8: =IFERROR((IF(INDEX(Stravovanie[],KoniecPoslednéhoStravovania-ZačiatokRiadkaStravovania-J8,1)<>"",INDEX(Stravovanie[],KoniecPoslednéhoStravovania-ZačiatokRiadkaStravovania-J8,4),NA())),NA()) -> 10 | J8: 9
D9: =IFERROR(IF(INDEX(Stravovanie[],KoniecPoslednéhoStravovania-ZačiatokRiadkaStravovania-J9,1)<>"",INDEX(Stravovanie[],KoniecPoslednéhoStravovania-ZačiatokRiadkaStravovania-J9,1),""),"") -> 2022-12-15 | E9: ŠT | F9: =IFERROR((IF(INDEX(Stravovanie[],KoniecPoslednéhoStravovania-ZačiatokRiadkaStravovania-J9,1)<>"",INDEX(Stravovanie[],KoniecPoslednéhoStravovania-ZačiatokRiadkaStravovania-J9,7),NA())),NA()) -> 8 | G9: =IFERROR((IF(INDEX(Stravovanie[],KoniecPoslednéhoStravovania-ZačiatokRiadkaStravovania-J9,1)<>"",INDEX(Stravovanie[],KoniecPoslednéhoStravovania-ZačiatokRiadkaStravovania-J9,6),NA())),NA()) -> 3 | H9: =IFERROR((IF(INDEX(Stravovanie[],KoniecPoslednéhoStravovania-ZačiatokRiadkaStravovania-J9,1)<>"",INDEX(Stravovanie[],KoniecPoslednéhoStravovania-ZačiatokRiadkaStravovania-J9,5),NA())),NA()) -> 26 | I9: =IFERROR((IF(INDEX(Stravovanie[],KoniecPoslednéhoStravovania-ZačiatokRiadkaStravovania-J9,1)<>"",INDEX(Stravovanie[],KoniecPoslednéhoStravovania-ZačiatokRiadkaStravovania-J9,4),NA())),NA()) -> 189 | J9: 8
D10: =IFERROR(IF(INDEX(Stravovanie[],KoniecPoslednéhoStravovania-ZačiatokRiadkaStravovania-J10,1)<>"",INDEX(Stravovanie[],KoniecPoslednéhoStravovania-ZačiatokRiadkaStravovania-J10,1),""),"") -> 2022-12-15 | E10: ŠT | F10: =IFERROR((IF(INDEX(Stravovanie[],KoniecPoslednéhoStravovania-ZačiatokRiadkaStravovania-J10,1)<>"",INDEX(Stravovanie[],KoniecPoslednéhoStravovania-ZačiatokRiadkaStravovania-J10,7),NA())),NA()) -> 21 | G10: =IFERROR((IF(INDEX(Stravovanie[],KoniecPoslednéhoStravovania-ZačiatokRiadkaStravovania-J10,1)<>"",INDEX(Stravovanie[],KoniecPoslednéhoStravovania-ZačiatokRiadkaStravovania-J10,6),NA())),NA()) -> 13.5 | H10: =IFERROR((IF(INDEX(Stravovanie[],KoniecPoslednéhoStravovania-ZačiatokRiadkaStravovania-J10,1)<>"",INDEX(Stravovanie[],KoniecPoslednéhoStravovania-ZačiatokRiadkaStravovania-J10,5),NA())),NA()) -> 62 | I10: =IFERROR((IF(INDEX(Stravovanie[],KoniecPoslednéhoStravovania-ZačiatokRiadkaStravovania-J10,1)<>"",INDEX(Stravovanie[],KoniecPoslednéhoStravovania-ZačiatokRiadkaStravovania-J10,4),NA())),NA()) -> 477 | J10: 7
D11: =IFERROR(IF(INDEX(Stravovanie[],KoniecPoslednéhoStravovania-ZačiatokRiadkaStravovania-J11,1)<>"",INDEX(Stravovanie[],KoniecPoslednéhoStravovania-ZačiatokRiadkaStravovania-J11,1),""),"") -> 2022-12-16 | E11: PI | F11: =IFERROR((IF(INDEX(Stravovanie[],KoniecPoslednéhoStravovania-ZačiatokRiadkaStravovania-J11,1)<>"",INDEX(Stravovanie[],KoniecPoslednéhoStravovania-ZačiatokRiadkaStravovania-J11,7),NA())),NA()) -> 0 | G11: =IFERROR((IF(INDEX(Stravovanie[],KoniecPoslednéhoStravovania-ZačiatokRiadkaStravovania-J11,1)<>"",INDEX(Stravovanie[],KoniecPoslednéhoStravovania-ZačiatokRiadkaStravovania-J11,6),NA())),NA()) -> 0 | H11: =IFERROR((IF(INDEX(Stravovanie[],KoniecPoslednéhoStravovania-ZačiatokRiadkaStravovania-J11,1)<>"",INDEX(Stravovanie[],KoniecPoslednéhoStravovania-ZačiatokRiadkaStravovania-J11,5),NA())),NA()) -> 0 | I11: =IFERROR((IF(INDEX(Stravovanie[],KoniecPoslednéhoStravovania-ZačiatokRiadkaStravovania-J11,1)<>"",INDEX(Stravovanie[],KoniecPoslednéhoStravovania-ZačiatokRiadkaStravovania-J11,4),NA())),NA()) -> 1 | J11: 6
D12: =IFERROR(IF(INDEX(Stravovanie[],KoniecPoslednéhoStravovania-ZačiatokRiadkaStravovania-J12,1)<>"",INDEX(Stravovanie[],KoniecPoslednéhoStravovania-ZačiatokRiadkaStravovania-J12,1),""),"") -> 2022-12-16 | E12: PI | F12: =IFERROR((IF(INDEX(Stravovanie[],KoniecPoslednéhoStravovania-ZačiatokRiadkaStravovania-J12,1)<>"",INDEX(Stravovanie[],KoniecPoslednéhoStravovania-ZačiatokRiadkaStravovania-J12,7),NA())),NA()) -> 1.5 | G12: =IFERROR((IF(INDEX(Stravovanie[],KoniecPoslednéhoStravovania-ZačiatokRiadkaStravovania-J12,1)<>"",INDEX(Stravovanie[],KoniecPoslednéhoStravovania-ZačiatokRiadkaStravovania-J12,6),NA())),NA()) -> 10 | H12: =IFERROR((IF(INDEX(Stravovanie[],KoniecPoslednéhoStravovania-ZačiatokRiadkaStravovania-J12,1)<>"",INDEX(Stravovanie[],KoniecPoslednéhoStravovania-ZačiatokRiadkaStravovania-J12,5),NA())),NA()) -> 48 | I12: =IFERROR((IF(INDEX(Stravovanie[],KoniecPoslednéhoStravovania-ZačiatokRiadkaStravovania-J12,1)<>"",INDEX(Stravovanie[],KoniecPoslednéhoStravovania-ZačiatokRiadkaStravovania-J12,4),NA())),NA()) -> 245 | J12: 5
D13: =IFERROR(IF(INDEX(Stravovanie[],KoniecPoslednéhoStravovania-ZačiatokRiadkaStravovania-J13,1)<>"",INDEX(Stravovanie[],KoniecPoslednéhoStravovania-ZačiatokRiadkaStravovania-J13,1),""),"") -> 2022-12-16 | E13: PI | F13: =IFERROR((IF(INDEX(Stravovanie[],KoniecPoslednéhoStravovania-ZačiatokRiadkaStravovania-J13,1)<>"",INDEX(Stravovanie[],KoniecPoslednéhoStravovania-ZačiatokRiadkaStravovania-J13,7),NA())),NA()) -> 5 | G13: =IFERROR((IF(INDEX(Stravovanie[],KoniecPoslednéhoStravovania-ZačiatokRiadkaStravovania-J13,1)<>"",INDEX(Stravovanie[],KoniecPoslednéhoStravovania-ZačiatokRiadkaStravovania-J13,6),NA())),NA()) -> 43 | H13: =IFERROR((IF(INDEX(Stravovanie[],KoniecPoslednéhoStravovania-ZačiatokRiadkaStravovania-J13,1)<>"",INDEX(Stravovanie[],KoniecPoslednéhoStravovania-ZačiatokRiadkaStravovania-J13,5),NA())),NA()) -> 11 | I13: =IFERROR((IF(INDEX(Stravovanie[],KoniecPoslednéhoStravovania-ZačiatokRiadkaStravovania-J13,1)<>"",INDEX(Stravovanie[],KoniecPoslednéhoStravovania-ZačiatokRiadkaStravovania-J13,4),NA())),NA()) -> 247 | J13: 4
D14: =IFERROR(IF(INDEX(Stravovanie[],KoniecPoslednéhoStravovania-ZačiatokRiadkaStravovania-J14,1)<>"",INDEX(Stravovanie[],KoniecPoslednéhoStravovania-ZačiatokRiadkaStravovania-J14,1),""),"") -> 2022-12-16 | E14: PI | F14: =IFERROR((IF(INDEX(Stravovanie[],KoniecPoslednéhoStravovania-ZačiatokRiadkaStravovania-J14,1)<>"",INDEX(Stravovanie[],KoniecPoslednéhoStravovania-ZačiatokRiadkaStravovania-J14,7),NA())),NA()) -> 22 | G14: =IFERROR((IF(INDEX(Stravovanie[],KoniecPoslednéhoStravovania-ZačiatokRiadkaStravovania-J14,1)<>"",INDEX(Stravovanie[],KoniecPoslednéhoStravovania-ZačiatokRiadkaStravovania-J14,6),NA())),NA()) -> 32 | H14: =IFERROR((IF(INDEX(Stravovanie[],KoniecPoslednéhoStravovania-ZačiatokRiadkaStravovania-J14,1)<>"",INDEX(Stravovanie[],KoniecPoslednéhoStravovania-ZačiatokRiadkaStravovania-J14,5),NA())),NA()) -> 64 | I14: =IFERROR((IF(INDEX(Stravovanie[],KoniecPoslednéhoStravovania-ZačiatokRiadkaStravovania-J14,1)<>"",INDEX(Stravovanie[],KoniecPoslednéhoStravovania-ZačiatokRiadkaStravovania-J14,4),NA())),NA()) -> 456 | J14: 3
D15: =IFERROR(IF(INDEX(Stravovanie[],KoniecPoslednéhoStravovania-ZačiatokRiadkaStravovania-J15,1)<>"",INDEX(Stravovanie[],KoniecPoslednéhoStravovania-ZačiatokRiadkaStravovania-J15,1),""),"") -> 2022-12-17 | E15: SO | F15: =IFERROR((IF(INDEX(Stravovanie[],KoniecPoslednéhoStravovania-ZačiatokRiadkaStravovania-J15,1)<>"",INDEX(Stravovanie[],KoniecPoslednéhoStravovania-ZačiatokRiadkaStravovania-J15,7),NA())),NA()) -> 10 | G15: =IFERROR((IF(INDEX(Stravovanie[],KoniecPoslednéhoStravovania-ZačiatokRiadkaStravovania-J15,1)<>"",INDEX(Stravovanie[],KoniecPoslednéhoStravovania-ZačiatokRiadkaStravovania-J15,6),NA())),NA()) -> 2 | H15: =IFERROR((IF(INDEX(Stravovanie[],KoniecPoslednéhoStravovania-ZačiatokRiadkaStravovania-J15,1)<>"",INDEX(Stravovanie[],KoniecPoslednéhoStravovania-ZačiatokRiadkaStravovania-J15,5),NA())),NA()) -> 10 | I15: =IFERROR((IF(INDEX(Stravovanie[],KoniecPoslednéhoStravovania-ZačiatokRiadkaStravovania-J15,1)<>"",INDEX(Stravovanie[],KoniecPoslednéhoStravovania-ZačiatokRiadkaStravovania-J15,4),NA())),NA()) -> 10 | J15: 2
D16: =IFERROR(IF(INDEX(Stravovanie[],KoniecPoslednéhoStravovania-ZačiatokRiadkaStravovania-J16,1)<>"",INDEX(Stravovanie[],KoniecPoslednéhoStravovania-ZačiatokRiadkaStravovania-J16,1),""),"") -> 2022-12-17 | E16: SO | F16: =IFERROR((IF(INDEX(Stravovanie[],KoniecPoslednéhoStravovania-ZačiatokRiadkaStravovania-J16,1)<>"",INDEX(Stravovanie[],KoniecPoslednéhoStravovania-ZačiatokRiadkaStravovania-J16,7),NA())),NA()) -> 5.51 | G16: =IFERROR((IF(INDEX(Stravovanie[],KoniecPoslednéhoStravovania-ZačiatokRiadkaStravovania-J16,1)<>"",INDEX(Stravovanie[],KoniecPoslednéhoStravovania-ZačiatokRiadkaStravovania-J16,6),NA())),NA()) -> 8.81 | H16: =IFERROR((IF(INDEX(Stravovanie[],KoniecPoslednéhoStravovania-ZačiatokRiadkaStravovania-J16,1)<>"",INDEX(Stravovanie[],KoniecPoslednéhoStravovania-ZačiatokRiadkaStravovania-J16,5),NA())),NA()) -> 12.36 | I16: =IFERROR((IF(INDEX(Stravovanie[],KoniecPoslednéhoStravovania-ZačiatokRiadkaStravovania-J16,1)<>"",INDEX(Stravovanie[],KoniecPoslednéhoStravovania-ZačiatokRiadkaStravovania-J16,4),NA())),NA()) -> 135 | J16: 1
D17: =IFERROR(IF(INDEX(Stravovanie[],KoniecPoslednéhoStravovania-ZačiatokRiadkaStravovania-J17,1)<>"",INDEX(Stravovanie[],KoniecPoslednéhoStravovania-ZačiatokRiadkaStravovania-J17,1),""),"") -> 2022-12-17 | E17: SO | F17: =IFERROR((IF(INDEX(Stravovanie[],KoniecPoslednéhoStravovania-ZačiatokRiadkaStravovania-J17,1)<>"",INDEX(Stravovanie[],KoniecPoslednéhoStravovania-ZačiatokRiadkaStravovania-J17,7),NA())),NA()) -> 15 | G17: =IFERROR((IF(INDEX(Stravovanie[],KoniecPoslednéhoStravovania-ZačiatokRiadkaStravovania-J17,1)<>"",INDEX(Stravovanie[],KoniecPoslednéhoStravovania-ZačiatokRiadkaStravovania-J17,6),NA())),NA()) -> 5.43 | H17: =IFERROR((IF(INDEX(Stravovanie[],KoniecPoslednéhoStravovania-ZačiatokRiadkaStravovania-J17,1)<>"",INDEX(Stravovanie[],KoniecPoslednéhoStravovania-ZačiatokRiadkaStravovania-J17,5),NA())),NA()) -> 7 | I17: =IFERROR((IF(INDEX(Stravovanie[],KoniecPoslednéhoStravovania-ZačiatokRiadkaStravovania-J17,1)<>"",INDEX(Stravovanie[],KoniecPoslednéhoStravovania-ZačiatokRiadkaStravovania-J17,4),NA())),NA()) -> 184 | J17: 0
D18: =IFERROR(IF(INDEX(Stravovanie[],KoniecPoslednéhoStravovania-ZačiatokRiadkaStravovania-J18,1)<>"",INDEX(Stravovanie[],KoniecPoslednéhoStravovania-ZačiatokRiadkaStravovania-J18,1)),"") -> 2022-12-19 | E18: PO | F18: =IFERROR((IF(INDEX(Stravovanie[],KoniecPoslednéhoStravovania-ZačiatokRiadkaStravovania-J18,1)<>"",INDEX(Stravovanie[],KoniecPoslednéhoStravovania-ZačiatokRiadkaStravovania-J18,7),NA())),NA()) -> 21 | G18: =IFERROR((IF(INDEX(Stravovanie[],KoniecPoslednéhoStravovania-ZačiatokRiadkaStravovania-J18,1)<>"",INDEX(Stravovanie[],KoniecPoslednéhoStravovania-ZačiatokRiadkaStravovania-J18,6),NA())),NA()) -> 13.5 | H18: =IFERROR((IF(INDEX(Stravovanie[],KoniecPoslednéhoStravovania-ZačiatokRiadkaStravovania-J18,1)<>"",INDEX(Stravovanie[],KoniecPoslednéhoStravovania-ZačiatokRiadkaStravovania-J18,5),NA())),NA()) -> 62 | I18: =IFERROR((IF(INDEX(Stravovanie[],KoniecPoslednéhoStravovania-ZačiatokRiadkaStravovania-J18,1)<>"",INDEX(Stravovanie[],KoniecPoslednéhoStravovania-ZačiatokRiadkaStravovania-J18,4),NA())),NA()) -> 477 | J18: -1
B20: ÚDAJE GRAFU ANALÝZY CVIČENIA
B22: Začiatočný riadok | C22: =ROW(Cvičenie[[#Headers],[DÁTUM]])+1 -> 4 | D22: DÁTUM | E22: DEŇ | F22: DĹŽKA TRVANIA (MINÚTY) | G22: SPÁLENÉ KALÓRIE | H22: Počet
B23: Posledný záznam o cvičení | C23: =MATCH(9.99E+307,Cvičenie[DÁTUM])+ZačiatokRiadkaCvičenia-1 -> 20 | D23: =IFERROR(IF(INDEX(Cvičenie[],KoniecPoslednéhoCvičenia-ZačiatokRiadkaCvičenia-H23,1)<>"",INDEX(Cvičenie[],KoniecPoslednéhoCvičenia-ZačiatokRiadkaCvičenia-H23,1)),"") -> 2023-01-03 | E23: =UPPER(TEXT(D23,"DDD")) -> UT | F23: =IFERROR((IF(INDEX(Cvičenie[],KoniecPoslednéhoCvičenia-ZačiatokRiadkaCvičenia-H23,1)<>"",INDEX(Cvičenie[],KoniecPoslednéhoCvičenia-ZačiatokRiadkaCvičenia-H23,2),0)),0) -> 20 | G23: =IFERROR((IF(INDEX(Cvičenie[],KoniecPoslednéhoCvičenia-ZačiatokRiadkaCvičenia-H23,2)<>"",INDEX(Cvičenie[],KoniecPoslednéhoCvičenia-ZačiatokRiadkaCvičenia-H23,3),0)),0) -> 195 | H23: -1
D24: =IFERROR(IF(INDEX(Cvičenie[],KoniecPoslednéhoCvičenia-ZačiatokRiadkaCvičenia-H24,1)<>"",INDEX(Cvičenie[],KoniecPoslednéhoCvičenia-ZačiatokRiadkaCvičenia-H24,1)),"") -> 2023-01-02 | E24: PO | F24: =IFERROR((IF(INDEX(Cvičenie[],KoniecPoslednéhoCvičenia-ZačiatokRiadkaCvičenia-H24,1)<>"",INDEX(Cvičenie[],KoniecPoslednéhoCvičenia-ZačiatokRiadkaCvičenia-H24,2),0)),0) -> 25 | G24: =IFERROR((IF(INDEX(Cvičenie[],KoniecPoslednéhoCvičenia-ZačiatokRiadkaCvičenia-H24,2)<>"",INDEX(Cvičenie[],KoniecPoslednéhoCvičenia-ZačiatokRiadkaCvičenia-H24,3),0)),0) -> 265 | H24: 0
D25: =IFERROR(IF(INDEX(Cvičenie[],KoniecPoslednéhoCvičenia-ZačiatokRiadkaCvičenia-H25,1)<>"",INDEX(Cvičenie[],KoniecPoslednéhoCvičenia-ZačiatokRiadkaCvičenia-H25,1)),"") -> 2023-01-01 | E25: NE | F25: =IFERROR((IF(INDEX(Cvičenie[],KoniecPoslednéhoCvičenia-ZačiatokRiadkaCvičenia-H25,1)<>"",INDEX(Cvičenie[],KoniecPoslednéhoCvičenia-ZačiatokRiadkaCvičenia-H25,2),0)),0) -> 40 | G25: =IFERROR((IF(INDEX(Cvičenie[],KoniecPoslednéhoCvičenia-ZačiatokRiadkaCvičenia-H25,2)<>"",INDEX(Cvičenie[],KoniecPoslednéhoCvičenia-ZačiatokRiadkaCvičenia-H25,3),0)),0) -> 290 | H25: 1
D26: =IFERROR(IF(INDEX(Cvičenie[],KoniecPoslednéhoCvičenia-ZačiatokRiadkaCvičenia-H26,1)<>"",INDEX(Cvičenie[],KoniecPoslednéhoCvičenia-ZačiatokRiadkaCvičenia-H26,1)),"") -> 2022-12-31 | E26: SO | F26: =IFERROR((IF(INDEX(Cvičenie[],KoniecPoslednéhoCvičenia-ZačiatokRiadkaCvičenia-H26,1)<>"",INDEX(Cvičenie[],KoniecPoslednéhoCvičenia-ZačiatokRiadkaCvičenia-H26,2),0)),0) -> 35 | G26: =IFERROR((IF(INDEX(Cvičenie[],KoniecPoslednéhoCvičenia-ZačiatokRiadkaCvičenia-H26,2)<>"",INDEX(Cvičenie[],KoniecPoslednéhoCvičenia-ZačiatokRiadkaCvičenia-H26,3),0)),0) -> 320 | H26: 2
D27: =IFERROR(IF(INDEX(Cvičenie[],KoniecPoslednéhoCvičenia-ZačiatokRiadkaCvičenia-H27,1)<>"",INDEX(Cvičenie[],KoniecPoslednéhoCvičenia-ZačiatokRiadkaCvičenia-H27,1)),"") -> 2022-12-30 | E27: PI | F27: =IFERROR((IF(INDEX(Cvičenie[],KoniecPoslednéhoCvičenia-ZačiatokRiadkaCvičenia-H27,1)<>"",INDEX(Cvičenie[],KoniecPoslednéhoCvičenia-ZačiatokRiadkaCvičenia-H27,2),0)),0) -> 45 | G27: =IFERROR((IF(INDEX(Cvičenie[],KoniecPoslednéhoCvičenia-ZačiatokRiadkaCvičenia-H27,2)<>"",INDEX(Cvičenie[],KoniecPoslednéhoCvičenia-ZačiatokRiadkaCvičenia-H27,3),0)),0) -> 350 | H27: 3
D28: =IFERROR(IF(INDEX(Cvičenie[],KoniecPoslednéhoCvičenia-ZačiatokRiadkaCvičenia-H28,1)<>"",INDEX(Cvičenie[],KoniecPoslednéhoCvičenia-ZačiatokRiadkaCvičenia-H28,1)),"") -> 2022-12-29 | E28: ŠT | F28: =IFERROR((IF(INDEX(Cvičenie[],KoniecPoslednéhoCvičenia-ZačiatokRiadkaCvičenia-H28,1)<>"",INDEX(Cvičenie[],KoniecPoslednéhoCvičenia-ZačiatokRiadkaCvičenia-H28,2),0)),0) -> 20 | G28: =IFERROR((IF(INDEX(Cvičenie[],KoniecPoslednéhoCvičenia-ZačiatokRiadkaCvičenia-H28,2)<>"",INDEX(Cvičenie[],KoniecPoslednéhoCvičenia-ZačiatokRiadkaCvičenia-H28,3),0)),0) -> 295 | H28: 4
D29: =IFERROR(IF(INDEX(Cvičenie[],KoniecPoslednéhoCvičenia-ZačiatokRiadkaCvičenia-H29,1)<>"",INDEX(Cvičenie[],KoniecPoslednéhoCvičenia-ZačiatokRiadkaCvičenia-H29,1)),"") -> 2022-12-28 | E29: ST | F29: =IFERROR((IF(INDEX(Cvičenie[],KoniecPoslednéhoCvičenia-ZačiatokRiadkaCvičenia-H29,1)<>"",INDEX(Cvičenie[],KoniecPoslednéhoCvičenia-ZačiatokRiadkaCvičenia-H29,2),0)),0) -> 40 | G29: =IFERROR((IF(INDEX(Cvičenie[],KoniecPoslednéhoCvičenia-ZačiatokRiadkaCvičenia-H29,2)<>"",INDEX(Cvičenie[],KoniecPoslednéhoCvičenia-ZačiatokRiadkaCvičenia-H29,3),0)),0) -> 270 | H29: 5
D30: =IFERROR(IF(INDEX(Cvičenie[],KoniecPoslednéhoCvičenia-ZačiatokRiadkaCvičenia-H30,1)<>"",INDEX(Cvičenie[],KoniecPoslednéhoCvičenia-ZačiatokRiadkaCvičenia-H30,1)),"") -> 2022-12-27 | E30: UT | F30: =IFERROR((IF(INDEX(Cvičenie[],KoniecPoslednéhoCvičenia-ZačiatokRiadkaCvičenia-H30,1)<>"",INDEX(Cvičenie[],KoniecPoslednéhoCvičenia-ZačiatokRiadkaCvičenia-H30,2),0)),0) -> 45 | G30: =IFERROR((IF(INDEX(Cvičenie[],KoniecPoslednéhoCvičenia-ZačiatokRiadkaCvičenia-H30,2)<>"",INDEX(Cvičenie[],KoniecPoslednéhoCvičenia-ZačiatokRiadkaCvičenia-H30,3),0)),0) -> 325 | H30: 6
D31: =IFERROR(IF(INDEX(Cvičenie[],KoniecPoslednéhoCvičenia-ZačiatokRiadkaCvičenia-H31,1)<>"",INDEX(Cvičenie[],KoniecPoslednéhoCvičenia-ZačiatokRiadkaCvičenia-H31,1)),"") -> 2022-12-26 | E31: PO | F31: =IFERROR((IF(INDEX(Cvičenie[],KoniecPoslednéhoCvičenia-ZačiatokRiadkaCvičenia-H31,1)<>"",INDEX(Cvičenie[],KoniecPoslednéhoCvičenia-ZačiatokRiadkaCvičenia-H31,2),0)),0) -> 40 | G31: =IFERROR((IF(INDEX(Cvičenie[],KoniecPoslednéhoCvičenia-ZačiatokRiadkaCvičenia-H31,2)<>"",INDEX(Cvičenie[],KoniecPoslednéhoCvičenia-ZačiatokRiadkaCvičenia-H31,3),0)),0) -> 175 | H31: 7
D32: =IFERROR(IF(INDEX(Cvičenie[],KoniecPoslednéhoCvičenia-ZačiatokRiadkaCvičenia-H32,1)<>"",INDEX(Cvičenie[],KoniecPoslednéhoCvičenia-ZačiatokRiadkaCvičenia-H32,1)),"") -> 2022-12-25 | E32: NE | F32: =IFERROR((IF(INDEX(Cvičenie[],KoniecPoslednéhoCvičenia-ZačiatokRiadkaCvičenia-H32,1)<>"",INDEX(Cvičenie[],KoniecPoslednéhoCvičenia-ZačiatokRiadkaCvičenia-H32,2),0)),0) -> 30 | G32: =IFERROR((IF(INDEX(Cvičenie[],KoniecPoslednéhoCvičenia-ZačiatokRiadkaCvičenia-H32,2)<>"",INDEX(Cvičenie[],KoniecPoslednéhoCvičenia-ZačiatokRiadkaCvičenia-H32,3),0)),0) -> 335 | H32: 8
D33: =IFERROR(IF(INDEX(Cvičenie[],KoniecPoslednéhoCvičenia-ZačiatokRiadkaCvičenia-H33,1)<>"",INDEX(Cvičenie[],KoniecPoslednéhoCvičenia-ZačiatokRiadkaCvičenia-H33,1)),"") -> 2022-12-24 | E33: SO | F33: =IFERROR((IF(INDEX(Cvičenie[],KoniecPoslednéhoCvičenia-ZačiatokRiadkaCvičenia-H33,1)<>"",INDEX(Cvičenie[],KoniecPoslednéhoCvičenia-ZačiatokRiadkaCvičenia-H33,2),0)),0) -> 40 | G33: =IFERROR((IF(INDEX(Cvičenie[],KoniecPoslednéhoCvičenia-ZačiatokRiadkaCvičenia-H33,2)<>"",INDEX(Cvičenie[],KoniecPoslednéhoCvičenia-ZačiatokRiadkaCvičenia-H33,3),0)),0) -> 205 | H33: 9
D34: =IFERROR(IF(INDEX(Cvičenie[],KoniecPoslednéhoCvičenia-ZačiatokRiadkaCvičenia-H34,1)<>"",INDEX(Cvičenie[],KoniecPoslednéhoCvičenia-ZačiatokRiadkaCvičenia-H34,1)),"") -> 2022-12-23 | E34: PI | F34: =IFERROR((IF(INDEX(Cvičenie[],KoniecPoslednéhoCvičenia-ZačiatokRiadkaCvičenia-H34,1)<>"",INDEX(Cvičenie[],KoniecPoslednéhoCvičenia-ZačiatokRiadkaCvičenia-H34,2),0)),0) -> 20 | G34: =IFERROR((IF(INDEX(Cvičenie[],KoniecPoslednéhoCvičenia-ZačiatokRiadkaCvičenia-H34,2)<>"",INDEX(Cvičenie[],KoniecPoslednéhoCvičenia-ZačiatokRiadkaCvičenia-H34,3),0)),0) -> 285 | H34: 10
D35: =IFERROR(IF(INDEX(Cvičenie[],KoniecPoslednéhoCvičenia-ZačiatokRiadkaCvičenia-H35,1)<>"",INDEX(Cvičenie[],KoniecPoslednéhoCvičenia-ZačiatokRiadkaCvičenia-H35,1)),"") -> 2022-12-22 | E35: ŠT | F35: =IFERROR((IF(INDEX(Cvičenie[],KoniecPoslednéhoCvičenia-ZačiatokRiadkaCvičenia-H35,1)<>"",INDEX(Cvičenie[],KoniecPoslednéhoCvičenia-ZačiatokRiadkaCvičenia-H35,2),0)),0) -> 25 | G35: =IFERROR((IF(INDEX(Cvičenie[],KoniecPoslednéhoCvičenia-ZačiatokRiadkaCvičenia-H35,2)<>"",INDEX(Cvičenie[],KoniecPoslednéhoCvičenia-ZačiatokRiadkaCvičenia-H35,3),0)),0) -> 125 | H35: 11
D36: =IFERROR(IF(INDEX(Cvičenie[],KoniecPoslednéhoCvičenia-ZačiatokRiadkaCvičenia-H36,1)<>"",INDEX(Cvičenie[],KoniecPoslednéhoCvičenia-ZačiatokRiadkaCvičenia-H36,1)),"") -> 2022-12-21 | E36: ST | F36: =IFERROR((IF(INDEX(Cvičenie[],KoniecPoslednéhoCvičenia-ZačiatokRiadkaCvičenia-H36,1)<>"",INDEX(Cvičenie[],KoniecPoslednéhoCvičenia-ZačiatokRiadkaCvičenia-H36,2),0)),0) -> 30 | G36: =IFERROR((IF(INDEX(Cvičenie[],KoniecPoslednéhoCvičenia-ZačiatokRiadkaCvičenia-H36,2)<>"",INDEX(Cvičenie[],KoniecPoslednéhoCvičenia-ZačiatokRiadkaCvičenia-H36,3),0)),0) -> 150 | H36: 12
